bitfinex/quotes_SOLUSD_20260213
["timestamp","ask_amount","ask_price","bid_price","bid_amount"]
[1770952786330,0.2,79.23,79.203,0.94088624]
[1770952786507,4.40831632,79.25,79.211,0.94088624]
[1770952786709,4.40831632,79.25,79.213,0.94088624]
[1770952788113,4.40831632,79.25,79.212,54.64]
[1770952788114,4.20831632,79.24,79.215,0.94088624]
[1770952788314,0.98990752,79.239,79.215,0.94088624]
[1770952789122,0.98990752,79.229,79.21,12.62463855]
[1770952789411,0.98990752,79.219,79.21,12.62463855]
[1770952789715,0.98990752,79.219,79.202,12.62586385]
[1770952790120,0.98990752,79.219,79.194,12.62721923]
[1770952791122,0.2,79.25,79.19,12.62781026]
[1770952791123,0.98990752,79.209,79.19,12.62781026]
[1770952791321,0.98990752,79.209,79.191,0.94088624]
[1770952791520,0.98990752,79.209,79.19,12.62781026]
[1770952792188,0.98990752,79.209,79.185,12.62865441]
[1770952792413,0.98990752,79.209,79.185,13.56954065]
[1770952792816,0.98990752,79.209,79.186,0.94088624]
[1770952795219,0.98990752,79.209,79.188,0.94088624]
[1770952797520,0.98990752,79.209,79.189,12.62801651]
[1770952797818,0.98990752,79.199,79.182,12.62904519]
[1770952800833,0.98990752,79.199,79.169,1.02945859]
[1770952801026,0.97171112,79.179,79.156,12.63328111]
[1770952801208,0.97171112,79.179,79.157,1.02945859]
[1770952803327,0.97171112,79.179,79.158,12.63296192]
[1770952804522,0.97171112,79.179,79.159,1.02945859]
[1770952805924,0.97171112,79.179,79.161,1.02945859]
[1770952806220,0.97171112,79.189,79.161,1.02945859]
[1770952809025,0.97171112,79.188,79.161,1.02945859]
[1770952809231,0.97171112,79.179,79.16,12.63264274]
[1770952810524,0.97171112,79.179,79.16,1.02945859]
[1770952812314,0.97171112,79.179,79.161,12.63248316]
[1770952812621,0.97171112,79.179,79.162,1.02945859]
[1770952813307,0.97171112,79.179,79.161,12.63248316]
[1770952814225,4.20831632,79.17,79.161,12.63248316]
[1770952814729,0.97171112,79.169,79.155,12.63344071]
[1770952816031,0.97171112,79.179,79.156,1.02945859]
[1770952818627,0.97171112,79.179,79.157,12.63312151]
[1770952818814,0.97171112,79.169,79.154,50.8]
[1770952819017,0.97171112,79.159,79.132,1.02945859]
[1770952819324,0.97171112,79.149,79.132,1.02945859]
[1770952819524,0.97171112,79.149,79.13,54.98]
[1770952819720,0.97171112,79.149,79.127,13.66725365]
[1770952819912,0.97171112,79.149,79.127,12.63779506]
[1770952820530,0.97171112,79.149,79.123,1.02945859]
[1770952820751,0.97171112,79.139,79.116,54.98]
[1770952821437,0.97171112,79.139,79.112,12.64030741]
[1770952821438,0.97171112,79.129,79.112,12.64030741]
[1770952821626,0.97171112,79.129,79.111,12.64046719]
[1770952823024,0.97171112,79.134,79.112,1.02945859]
[1770952824635,4.21519106,79.13,79.114,1.02945859]
[1770952825036,5.18690218,79.14,79.114,1.02945859]
[1770952825217,0.97171112,79.145,79.114,1.02945859]
[1770952825417,0.97171112,79.145,79.115,1.02945859]
[1770952825642,0.97171112,79.139,79.115,1.02945859]
[1770952828328,0.97171112,79.139,79.116,12.63966833]
[1770952828534,0.97171112,79.139,79.117,1.02945859]
[1770952829442,0.97171112,79.139,79.118,12.63934882]
[1770952829644,0.97171112,79.139,79.119,1.02945859]
[1770952831650,1.0214144,79.149,79.121,1.01347312]
[1770952832835,1.0214144,79.139,79.114,55.04]
[1770952833035,1.0214144,79.129,79.114,55.04]
[1770952833250,1.0214144,79.129,79.111,12.6403925]
[1770952834051,1.03337018,79.119,79.102,12.64181615]
[1770952834852,1.03337018,79.119,79.102,13.68792762]
[1770952836454,1.03337018,79.119,79.102,12.64181615]
[1770952840255,1.03337018,79.109,79.1,0.2]
[1770952843244,1.03337018,79.115,79.1,0.2]
[1770952843457,5.24856124,79.12,79.1,1.24611147]
[1770952844141,1.03337018,79.118,79.1,0.2]
[1770952844742,1.03337018,79.109,79.087,12.64420378]
[1770952845363,1.03337018,79.099,79.082,12.6449937]
[1770952847070,4.21519106,79.11,79.083,1.04611147]
[1770952848362,1.03337018,79.118,79.085,1.04611147]
[1770952851152,1.03337018,79.118,79.086,12.64446298]
[1770952851357,1.03337018,79.118,79.087,1.04611147]
[1770952852874,1.03337018,79.118,79.089,1.04611147]
[1770952858790,1.03337018,79.109,79.08,0.2]
[1770952858955,1.03337018,79.099,79.08,0.2]
[1770952859155,1.03337018,79.099,79.08,1.24611147]
[1770952859785,1.03337018,79.106,79.082,1.04611147]
[1770952859982,1.03337018,79.116,79.082,1.04611147]
[1770952860866,1.05172155,79.109,79.082,1.04611147]
[1770952861260,1.05172155,79.109,79.083,12.64494265]
[1770952861456,1.05172155,79.109,79.084,1.0060695]
[1770952862461,1.05172155,79.119,79.084,1.0060695]
[1770952862683,1.05172155,79.109,79.084,1.0060695]
[1770952862985,1.05172155,79.109,79.086,1.0060695]
[1770952865186,1.05172155,79.109,79.087,12.6443031]
[1770952865372,1.05172155,79.109,79.088,1.0060695]
[1770952865683,1.05172155,79.109,79.087,12.6443031]
[1770952866379,1.05172155,79.109,79.087,1.0060695]
[1770952866588,1.05172155,79.119,79.087,1.0060695]
[1770952869787,1.05172155,79.119,79.087,12.64416895]
[1770952869788,1.05172155,79.118,79.087,12.64416895]
[1770952870091,1.05172155,79.118,79.087,13.65023845]
[1770952870888,1.05172155,79.109,79.084,1.0060695]
[1770952875396,1.05172155,79.107,79.082,1.0060695]
[1770952876266,1.05172155,79.099,79.08,0.2]
[1770952877473,12.64254469,79.098,79.08,0.2]
[1770952877677,1.05172155,79.097,79.08,0.2]
[1770952879194,1.05172155,79.097,79.056,55.36]
[1770952879195,1.05172155,79.087,79.058,1.0060695]
[1770952881990,1.05172155,79.087,79.06,1.0060695]
[1770952883195,1.05172155,79.099,79.07,4.22055014]
[1770952883422,13.69383836,79.101,79.071,1.0060695]
[1770952883703,1.05172155,79.099,79.071,1.0060695]
[1770952884187,1.05172155,79.099,79.073,1.0060695]
[1770952884898,1.05172155,79.097,79.073,1.0060695]
[1770952885101,1.05172155,79.097,79.06,4.22055014]
[1770952885102,1.05172155,79.089,79.067,1.0060695]
[1770952887906,4.22055014,79.1,79.071,1.0060695]
[1770952887907,1.05172155,79.099,79.071,1.0060695]
[1770952888784,1.05172155,79.099,79.05,4.42055014]
[1770952888785,0.32943631,79.079,79.05,0.2]
[1770952888977,0.32943631,79.069,79.051,12.65006135]
[1770952889382,0.32943631,79.069,79.051,13.65613085]
[1770952890705,0.32943631,79.069,79.052,0.99788015]
[1770952892397,0.33167571,79.079,79.054,0.99788015]
[1770952894489,0.332606,79.069,79.05,0.2]
[1770952895506,4.22055014,79.06,79.05,0.2]
[1770952895804,0.33283617,79.059,79.034,1.07208677]
[1770952898814,0.33283617,79.059,79.036,1.07208677]
[1770952899795,4.22055014,79.06,79.036,1.07208677]
[1770952900514,4.35526382,79.06,79.036,1.07208677]
[1770952901104,0.13471368,79.059,79.036,1.07208677]
[1770952903003,4.22055014,79.06,79.038,1.07208677]
[1770952903322,4.35598046,79.06,79.038,1.07208677]
[1770952905119,0.13612375,79.083,79.041,1.07208677]
[1770952905420,0.13612375,79.083,79.051,1.07208677]
[1770952905719,0.13646288,79.095,79.061,1.07208677]
[1770952905898,0.13646288,79.095,79.045,35.79263691]
[1770952906108,0.13646288,79.095,79.06,4.22055014]
[1770952906300,1.02390214,79.099,79.06,4.22055014]
[1770952907426,1.02390214,79.099,79.061,44.26961459]
[1770952907924,1.02390214,79.099,79.062,1.07208677]
[1770952912029,1.02390214,79.116,79.081,1.07208677]
[1770952913117,1.02390214,79.116,79.083,1.07208677]
[1770952913924,4.22055014,79.12,79.083,1.07208677]
[1770952914118,1.02390214,79.119,79.083,1.07208677]
[1770952914917,31.59244691,79.133,79.082,44.25785892]
[1770952914918,1.02390214,79.125,79.091,1.07208677]
[1770952915316,1.02390214,79.125,79.093,1.07208677]
[1770952918939,1.02390214,79.125,79.095,1.07208677]
[1770952920014,1.02390214,79.125,79.101,1.07208677]
[1770952920330,5.24445228,79.13,79.101,1.07208677]
[1770952920520,1.07640009,79.129,79.101,1.07208677]
[1770952921122,1.07640009,79.129,79.102,1.04110903]
[1770952922214,1.07640009,79.129,79.103,12.64174557]
[1770952922419,1.07640009,79.138,79.104,1.04110903]
[1770952922612,4.32055014,79.17,79.121,1.04110903]
[1770952922613,25.79695023,79.15,79.121,1.04110903]
[1770952922825,1.07640009,79.148,79.121,1.04110903]
[1770952925225,1.07640009,79.148,79.121,12.63881356]
[1770952925425,1.07640009,79.148,79.122,1.04110903]
[1770952925937,1.07640009,79.158,79.122,1.04110903]
[1770952926137,1.07640009,79.149,79.122,1.04110903]
[1770952927928,1.07640009,79.147,79.122,1.04110903]
[1770952928744,1.07640009,79.139,79.106,1.04110903]
[1770952928935,1.07640009,79.129,79.106,1.04110903]
[1770952929449,1.07640009,79.119,79.094,1.04110903]
[1770952930041,1.07640009,79.117,79.087,1.04110903]
[1770952930263,1.07640009,79.109,79.087,1.04110903]
[1770952930431,1.07640009,79.099,79.076,1.04110903]
[1770952934556,1.07640009,79.097,79.076,1.04110903]
[1770952937339,1.07640009,79.097,79.078,1.04110903]
[1770952937533,1.07640009,79.107,79.078,1.04110903]
[1770952938349,38.96,79.108,79.071,12.64674287]
[1770952938350,1.07640009,79.099,79.071,12.64674287]
[1770952939362,1.07640009,79.098,79.071,12.64674287]
[1770952939591,4.22055014,79.09,79.061,12.64846131]
[1770952939861,1.07640009,79.079,79.061,12.64846131]
[1770952940053,4.22055014,79.09,79.062,1.04110903]
[1770952940261,1.07640009,79.089,79.062,1.04110903]
[1770952943169,1.07640009,79.089,79.05,35.84639334]
[1770952943170,1.07640009,79.089,79.064,1.04110903]
[1770952944055,4.22085554,79.1,79.064,1.04110903]
[1770952944251,1.07640009,79.099,79.064,1.04110903]
[1770952945146,1.07640009,79.099,79.065,12.64782141]
[1770952945342,1.07640009,79.099,79.066,1.04110903]
[1770952945543,1.07640009,79.098,79.066,1.04110903]
[1770952946758,1.07640009,79.089,79.067,13.68861051]
[1770952947060,4.22085554,79.08,79.062,13.68935833]
[1770952947359,4.22085554,79.08,79.063,1.04110903]
[1770952947746,1.07640009,79.085,79.063,1.04110903]
[1770952948340,1.07640009,79.085,79.057,1.04110903]
[1770952951262,1.07640009,79.085,79.058,12.64894128]
[1770952951458,1.07640009,79.085,79.058,13.72909972]
[1770952952370,1.07640009,79.085,79.059,1.08015844]
[1770952954555,1.07640009,79.085,79.06,12.6486213]
[1770952955968,1.07640009,79.085,79.06,1.0191994]
[1770952957056,1.07640009,79.085,79.062,1.0191994]
[1770952958454,1.07640009,79.085,79.061,12.64846131]
[1770952959066,1.0799259,79.079,79.057,12.64910128]
[1770952959274,1.0799259,79.079,79.058,1.0191994]
[1770952961165,1.0799259,79.079,79.059,12.64878128]
[1770952961365,1.0799259,79.079,79.059,13.66798068]
[1770952962276,1.0799259,79.079,79.059,12.64878128]
[1770952962858,1.0799259,79.087,79.06,1.0191994]
[1770952963965,1.0799259,79.086,79.06,1.0191994]
[1770952964166,1.0799259,79.079,79.06,1.0191994]
[1770952964475,1.0799259,79.079,79.061,12.64846131]
[1770952968990,1.0799259,79.139,79.071,1.0191994]
[1770952969179,0.1,79.16,79.111,1.0191994]
[1770952969180,1.0799259,79.147,79.111,1.0191994]
[1770952969482,4.22085554,79.15,79.111,1.0191994]
[1770952969483,1.0799259,79.145,79.111,1.0191994]
[1770952970860,1.0799259,79.143,79.112,12.64030741]
[1770952971090,1.0799259,79.143,79.113,1.0191994]
[1770952972768,1.0799259,79.129,79.095,1.0191994]
[1770952972965,1.0799259,79.119,79.081,1.0191994]
[1770952973291,1.0799259,79.119,79.082,1.0191994]
[1770952974471,1.0799259,79.117,79.084,1.0191994]
[1770952975472,1.0799259,79.115,79.084,1.0191994]
[1770952976596,1.0799259,79.109,79.08,5.24005494]
[1770952976793,1.0799259,79.109,79.074,1.0191994]
[1770952977016,1.0799259,79.099,79.074,1.0191994]
[1770952977288,1.0799259,79.099,79.07,4.22085554]
[1770952977487,1.0799259,79.098,79.063,54.82]
[1770952977674,1.0799259,79.089,79.065,1.0191994]
[1770952981591,1.07198225,79.087,79.054,12.64945372]
[1770952981794,1.07198225,79.079,79.054,12.64945372]
[1770952982097,1.07198225,79.079,79.055,1.07568286]
[1770952982486,1.07198225,79.088,79.055,1.07568286]
[1770952982693,1.07198225,79.099,79.061,1.07568286]
[1770952982887,1.07198225,79.099,79.062,1.07568286]
[1770952983391,12.64162253,79.104,79.071,1.07568286]
[1770952983693,1.07198225,79.103,79.073,1.07568286]
[1770952984199,1.07198225,79.099,79.073,1.07568286]
[1770952985404,1.07198225,79.089,79.065,1.07568286]
[1770952987480,1.07198225,79.088,79.065,1.07568286]
[1770952988402,1.07198225,79.088,79.063,67.52801654]
[1770952989298,1.07198225,79.088,79.065,12.64782141]
[1770952989505,13.71525914,79.094,79.066,1.07568286]
[1770952989703,4.22085554,79.09,79.066,1.07568286]
[1770952991087,1.07198225,79.093,79.066,1.07568286]
[1770953000104,13.71541045,79.093,79.066,1.07568286]
[1770953000302,1.07198225,79.092,79.066,1.07568286]
[1770953001213,1.07198225,79.092,79.068,1.07568286]
[1770953003716,1.07198225,79.096,79.07,1.07568286]
[1770953003910,1.07198225,79.101,79.07,1.07568286]
[1770953004209,1.07198225,79.101,79.071,1.07568286]
[1770953004396,12.6418382,79.103,79.072,55.02]
[1770953004591,12.6418382,79.103,79.073,1.07568286]
[1770953004913,12.6418382,79.103,79.066,1.07568286]
[1770953004914,1.07198225,79.089,79.066,1.07568286]
[1770953006193,1.07198225,79.089,79.067,1.07568286]
[1770953007214,1.07198225,79.087,79.052,1.07568286]
[1770953007409,1.07198225,79.087,79.054,1.07568286]
[1770953008221,1.07198225,79.087,79.056,1.07568286]
[1770953010598,1.06376042,79.085,79.056,1.07568286]
[1770953011804,4.22017046,79.08,79.056,1.07568286]
[1770953012010,1.06376042,79.079,79.056,1.07568286]
[1770953012619,1.06376042,79.079,79.049,1.07185664]
[1770953012801,4.22017046,79.07,79.045,12.65095915]
[1770953013004,1.06376042,79.069,79.045,13.72281579]
[1770953013208,1.06376042,79.069,79.046,1.07185664]
[1770953014909,1.06376042,79.069,79.047,13.70291306]
[1770953015109,1.06376042,79.069,79.048,1.05221158]
[1770953019516,1.0475405,79.079,79.06,4.22017046]
[1770953019833,50.54029773,79.145,79.061,1.05221158]
[1770953019834,4.22017046,79.1,79.061,1.05221158]
[1770953020528,6.6111097,79.139,79.05,4.22017046]
[1770953020529,12.64119631,79.107,79.071,1.05221158]
[1770953020835,4.22017046,79.12,79.081,1.05221158]
[1770953021026,12.63934525,79.119,79.083,1.05221158]
[1770953021234,4.22017046,79.14,79.091,1.05221158]
[1770953021235,12.63847754,79.124,79.091,1.05221158]
[1770953021529,4.22017046,79.13,79.093,1.05221158]
[1770953021530,12.63783178,79.128,79.093,1.05221158]
[1770953021940,12.63783178,79.128,79.09,59.32017046]
[1770953022109,12.63783178,79.128,79.09,4.22017046]
[1770953022309,0.16538687,79.131,79.08,4.22017046]
[1770953022310,1.0475405,79.137,79.1,4.22017046]
[1770953023133,1.0475405,79.137,79.11,4.22017046]
[1770953023519,12.63647391,79.136,79.11,4.22017046]
[1770953023839,12.63647391,79.136,79.111,1.05221158]
[1770953024239,1.0475405,79.143,79.112,1.05221158]
[1770953025330,1.0475405,79.129,79.105,1.05221158]
[1770953030143,1.0475405,79.127,79.105,1.05221158]
[1770953030329,1.0475405,79.127,79.106,12.64126614]
[1770953030526,1.0475405,79.127,79.107,1.05221158]
[1770953030934,12.63715462,79.132,79.107,1.05221158]
[1770953031551,1.0475405,79.132,79.107,1.05221158]
[1770953033732,1.0475405,79.13,79.107,1.05221158]
[1770953034260,1.0475405,79.129,79.107,1.05221158]
[1770953034754,1.0475405,79.119,79.094,12.64312868]
[1770953034951,1.0475405,79.119,79.095,1.05221158]
[1770953041438,1.0475405,79.119,79.097,1.06287091]
[1770953042658,4.22017046,79.13,79.091,1.06287091]
[1770953042659,1.07308065,79.118,79.091,1.06287091]
[1770953042955,1.07308065,79.127,79.101,1.06287091]
[1770953043464,1.07308065,79.127,79.103,1.06287091]
[1770953043634,1.07308065,79.139,79.111,1.06287091]
[1770953044555,1.07308065,79.136,79.111,1.06287091]
[1770953044860,1.07308065,79.159,79.131,1.06287091]
[1770953045437,0.1,79.17,79.151,1.06287091]
[1770953045754,0.1,79.17,79.152,1.06287091]
[1770953046845,0.1,79.17,79.154,1.06287091]
[1770953049367,1.17308065,79.17,79.147,1.06287091]
[1770953049545,1.17308065,79.17,79.141,1.06287091]
[1770953049940,1.17308065,79.17,79.141,13.69854647]
[1770953050458,1.07308065,79.169,79.141,1.06287091]
[1770953051254,1.07308065,79.167,79.141,1.06287091]
[1770953051645,1.07308065,79.159,79.128,1.06287091]
[1770953052567,1.07308065,79.165,79.131,1.06287091]
[1770953054171,1.07308065,79.164,79.133,1.06287091]
[1770953056262,1.07308065,79.164,79.121,31.59678079]
[1770953056263,1.07308065,79.159,79.127,1.06287091]
[1770953056571,1.07308065,79.159,79.124,12.63824264]
[1770953056954,1.07308065,79.159,79.124,13.70111355]
[1770953057771,1.07308065,79.159,79.125,1.06287091]
[1770953057979,13.70524466,79.163,79.131,1.06287091]
[1770953058180,13.70524466,79.163,79.133,1.06287091]
[1770953058356,1.07308065,79.162,79.133,1.06287091]
[1770953060272,1.07308065,79.162,79.135,1.06287091]
[1770953061376,1.07308065,79.162,79.137,1.06287091]
[1770953063658,1.07308065,79.162,79.139,1.06287091]
[1770953065485,1.07308065,79.161,79.139,1.06287091]
[1770953073281,1.00801409,79.159,79.139,1.06287091]
[1770953073481,1.00801409,79.159,79.125,67.69812917]
[1770953073686,1.06676182,79.149,79.125,67.69812917]
[1770953074379,1.06676182,79.149,79.125,68.67601086]
[1770953075277,1.06676182,79.149,79.126,0.97788169]
[1770953075574,1.06676182,79.149,79.121,12.63886957]
[1770953075782,4.31217298,79.17,79.106,0.97788169]
[1770953075783,1.06676182,79.129,79.106,0.97788169]
[1770953076985,1.06676182,79.129,79.108,0.97788169]
[1770953080385,1.06676182,79.129,79.092,55.08]
[1770953080386,1.06676182,79.151,79.121,0.97788169]
[1770953080572,1.06676182,79.157,79.121,0.97788169]
[1770953081191,1.06676182,79.157,79.131,0.97788169]
[1770953081488,13.69877752,79.164,79.131,0.97788169]
[1770953082067,1.06676182,79.163,79.131,0.97788169]
[1770953082393,1.06676182,79.163,79.127,55.1]
[1770953082394,1.06676182,79.139,79.1,4.21217298]
[1770953082577,1.06676182,79.139,79.104,55.08]
[1770953083171,1.06676182,79.139,79.092,44.25226317]
[1770953083172,1.06676182,79.139,79.11,4.21217298]
[1770953083490,1.06676182,79.139,79.102,55.08]
[1770953084182,1.06676182,79.139,79.103,0.97788169]
[1770953085995,1.06676182,79.129,79.104,12.64158576]
[1770953086890,1.06676182,79.129,79.105,0.97788169]
[1770953088399,1.06676182,79.129,79.107,0.97788169]
[1770953089088,1.06676182,79.127,79.107,0.97788169]
[1770953091490,13.7047272,79.127,79.107,0.97788169]
[1770953091797,1.06676182,79.126,79.107,0.97788169]
[1770953095303,1.06676182,79.126,79.108,0.97788169]
[1770953096902,1.06676182,79.126,79.1,4.21217298]
[1770953096903,12.6361945,79.138,79.11,0.97788169]
[1770953097204,1.06676182,79.137,79.111,0.97788169]
[1770953097505,1.06676182,79.137,79.105,0.97788169]
[1770953098708,1.06676182,79.129,79.096,12.64285185]
[1770953098889,1.06676182,79.119,79.09,0.97788169]
[1770953100092,1.06676182,79.117,79.088,55.16]
[1770953100293,1.06676182,79.117,79.088,0.97788169]
[1770953100621,0.98741654,79.136,79.101,1.04852228]
[1770953100922,0.98741654,79.134,79.103,1.04852228]
[1770953101597,0.98741654,79.151,79.121,1.04852228]
[1770953101814,0.98741654,79.149,79.121,1.04852228]
[1770953101992,0.1,79.17,79.11,4.21217298]
[1770953101993,0.1,79.17,79.141,1.04852228]
[1770953102192,0.1,79.17,79.151,1.04852228]
[1770953103095,39.06,79.194,79.14,4.21217298]
[1770953103096,0.98741654,79.196,79.162,1.04852228]
[1770953104310,0.98741654,79.196,79.163,12.63216401]
[1770953104511,0.98741654,79.196,79.164,1.04852228]
[1770953105208,0.98741654,79.196,79.171,1.04852228]
[1770953106327,0.98741654,79.19,79.171,1.04852228]
[1770953106501,0.98741654,79.19,79.159,55.16]
[1770953106502,0.98741654,79.19,79.165,1.04852228]
[1770953107516,4.31217298,79.2,79.16,16.84481572]
[1770953107517,1.08741654,79.22,79.171,1.04852228]
[1770953107815,1.08741654,79.22,79.17,8.42434596]
[1770953107816,0.98741654,79.218,79.191,1.04852228]
[1770953108794,0.98741654,79.218,79.193,1.04852228]
[1770953109202,0.1,79.22,79.2,4.21217298]
[1770953109522,1.08741654,79.22,79.201,1.04852228]
[1770953110999,1.08741654,79.22,79.202,12.62594378]
[1770953111897,0.1,79.22,79.205,1.04852228]
[1770953115415,1.08741654,79.22,79.201,13.67462548]
[1770953116502,1.08741654,79.22,79.201,12.6261032]
[1770953116702,0.1,79.22,79.202,1.04852228]
[1770953117104,0.1,79.22,79.2,4.21217298]
[1770953118210,0.1,79.22,79.201,12.6261032]
[1770953119500,0.1,79.22,79.202,0.78175481]
[1770953119707,0.1,79.22,79.21,4.21217298]
[1770953122714,0.1,79.22,79.198,0.78500436]
[1770953122715,1.08741654,79.22,79.198,0.78500436]
[1770953122903,1.08741654,79.22,79.2,4.99717734]
[1770953123102,1.08741654,79.22,79.19,4.21217298]
[1770953124219,1.08741654,79.22,79.191,12.62769759]
[1770953124914,0.98741654,79.209,79.181,55.18]
[1770953125422,0.98741654,79.209,79.182,0.78711151]
[1770953126200,0.98741654,79.209,79.183,12.62897339]
[1770953126435,0.98741654,79.209,79.181,55.18]
[1770953127525,0.98741654,79.207,79.182,12.62913288]
[1770953128424,0.98741654,79.205,79.172,12.63072803]
[1770953128633,12.62530616,79.206,79.172,12.63072803]
[1770953128634,0.98741654,79.199,79.172,12.63072803]
[1770953130943,1.00842063,79.189,79.165,31.5793993]
[1770953131307,1.00842063,79.189,79.166,0.79081404]
[1770953134046,1.00424395,79.179,79.151,12.63407916]
[1770953134207,1.00424395,79.179,79.154,0.78815949]
[1770953134513,1.00424395,79.189,79.161,0.78815949]
[1770953136628,1.00424395,79.189,79.163,0.78624691]
[1770953139538,1.00424395,79.199,79.165,0.78438322]
[1770953141536,1.00424395,79.198,79.167,0.78317688]
[1770953143540,1.00424395,79.189,79.166,12.63168531]
[1770953145032,1.00424395,79.179,79.151,0.78143686]
[1770953145237,1.00424395,79.189,79.161,0.78143686]
[1770953145438,1.00424395,79.199,79.161,0.78143686]
[1770953146516,1.00424395,79.189,79.153,0.7802951]
[1770953146934,1.00424395,79.189,79.152,55.34]
[1770953146935,1.00424395,79.189,79.155,0.7802951]
[1770953147116,1.00424395,79.187,79.155,0.7802951]
[1770953147637,1.00424395,79.179,79.155,0.7802951]
[1770953147932,1.00424395,79.169,79.149,12.63435093]
[1770953149336,1.00424395,79.169,79.146,0.77921422]
[1770953151438,1.00424395,79.169,79.147,12.63471767]
[1770953152028,4.20697329,79.16,79.14,55.36]
[1770953152227,1.00424395,79.159,79.135,12.6366336]
[1770953152425,1.00424395,79.149,79.129,12.63759178]
[1770953153226,1.00424395,79.149,79.125,0.77706615]
[1770953156149,1.00424395,79.149,79.124,12.63839037]
[1770953156150,1.00424395,79.149,79.127,0.77554565]
[1770953157142,1.00424395,79.149,79.128,12.63775149]
[1770953160145,1.00424395,79.149,79.127,0.77357403]
[1770953161161,4.20697329,79.17,79.127,0.77357403]
[1770953161162,4.20697329,79.16,79.127,0.77357403]
[1770953161449,4.20697329,79.16,79.121,44.23604351]
[1770953161450,4.20697329,79.16,79.131,0.77262973]
[1770953163452,4.20697329,79.16,79.133,0.77080484]
[1770953164252,5.18116434,79.16,79.133,0.77080484]
[1770953165151,0.97419105,79.159,79.135,0.77036096]
[1770953166556,0.97419105,79.193,79.131,0.76948047]
[1770953166739,0.97419105,79.184,79.151,0.76948047]
[1770953167063,0.97419105,79.179,79.151,0.76948047]
[1770953167856,0.97419105,79.189,79.151,0.76948047]
[1770953168352,0.97419105,79.189,79.153,0.7690496]
[1770953168754,0.97419105,79.189,79.155,0.76862319]
[1770953170459,0.97419105,79.189,79.154,44.21760112]
[1770953170460,0.97419105,79.195,79.161,0.7682188]
[1770953170867,0.97419105,79.195,79.164,0.76780137]
[1770953171857,0.97419105,79.209,79.171,0.76738232]
[1770953172846,0.97419105,79.209,79.173,0.7669917]
[1770953175051,0.97419105,79.209,79.175,0.76619253]
[1770953176664,0.97419105,79.219,79.181,0.76540899]
[1770953177052,0.97419105,79.219,79.176,99.70531473]
[1770953177053,0.97419105,79.219,79.191,0.76540899]
[1770953177359,0.1,79.23,79.211,0.76540899]
[1770953178869,0.1,79.23,79.212,13.38898287]
[1770953179366,0.1,79.23,79.184,107.65333229]
[1770953179367,0.97419105,79.229,79.201,0.76463303]
[1770953179574,0.1,79.24,79.212,0.66424949]
[1770953179869,1.07419105,79.24,79.212,0.66424949]
[1770953182074,1.07419105,79.24,79.2,4.20697329]
[1770953182075,4.30697329,79.27,79.231,0.56364552]
[1770953182255,0.97419105,79.269,79.24,4.77061881]
[1770953182578,0.97419105,79.249,79.214,0.56344061]
[1770953182757,0.97419105,79.249,79.221,0.56344061]
[1770953183266,0.97419105,79.249,79.215,0.56344061]
[1770953183754,0.97419105,79.249,79.213,44.18466665]
[1770953183755,0.97419105,79.239,79.213,12.62419047]
[1770953183960,0.97419105,79.239,79.221,12.62291564]
[1770953184273,4.20697329,79.26,79.222,1.05134552]
[1770953186077,12.61698484,79.259,79.223,12.62259697]
[1770953186372,0.97419105,79.258,79.224,1.05134552]
[1770953187470,0.97419105,79.249,79.219,55.5]
[1770953187775,44.15914409,79.259,79.22,12.62307498]
[1770953187776,0.97419105,79.239,79.22,12.62307498]
[1770953189674,0.97419105,79.249,79.221,1.05134552]
[1770953190058,0.97419105,79.248,79.221,1.05134552]
[1770953190877,1.06773232,79.239,79.219,55.5]
[1770953191078,1.06773232,79.239,79.219,68.12313924]
[1770953191268,4.20259535,79.25,79.219,68.12313924]
[1770953191269,1.06773232,79.245,79.22,0.98293389]
[1770953193074,31.54215925,79.259,79.219,55.5]
[1770953193075,1.06773232,79.239,79.219,55.5]
[1770953193657,12.61925193,79.244,79.211,12.62449563]
[1770953193658,0.98672393,79.229,79.211,12.62449563]
[1770953193877,0.98672393,79.229,79.206,12.62516781]
[1770953195385,0.98672393,79.229,79.196,1.0668381]
[1770953195691,0.98672393,79.219,79.197,55.62]
[1770953195893,0.98672393,79.219,79.197,56.6868381]
[1770953196475,0.98672393,79.219,79.197,69.31349645]
[1770953196777,0.98672393,79.219,79.199,12.62642205]
[1770953197874,0.98672393,79.219,79.197,55.62]
[1770953198073,0.98672393,79.219,79.198,12.62658147]
[1770953200491,0.98672393,79.229,79.199,1.0668381]
[1770953201398,0.98672393,79.229,79.201,1.0668381]
[1770953202187,0.98672393,79.227,79.201,1.0668381]
[1770953203268,0.98672393,79.219,79.199,1.0668381]
[1770953207297,0.98672393,79.219,79.2,12.62626262]
[1770953207489,0.98672393,79.219,79.2,13.69310072]
[1770953207696,0.98672393,79.219,79.201,1.0668381]
[1770953210390,0.98672393,79.217,79.197,55.8]
[1770953210579,0.98672393,79.217,79.191,12.6276661]
[1770953210775,0.98672393,79.209,79.191,12.6276661]
[1770953212197,0.98672393,79.209,79.19,55.8]
[1770953212497,0.98672393,79.209,79.187,1.0668381]